bitfinex/quotes_BTCUSD_20240815
["timestamp","ask_amount","ask_price","bid_price","bid_amount"]
[1723712693092,1.33202508,58508.0,58507.0,2.9029053]
[1723712693297,0.98955454,58508.0,58507.0,2.9019053]
[1723712693500,0.18555454,58508.0,58507.0,3.0728243]
[1723712693715,0.18555454,58508.0,58507.0,3.7565023]
[1723712694137,0.19955454,58508.0,58507.0,3.4156633]
[1723712694341,0.17155454,58508.0,58507.0,3.7555023]
[1723712694518,0.17155454,58508.0,58507.0,3.4136633]
[1723712694839,0.17955454,58508.0,58507.0,3.4146633]
[1723712695452,0.20255454,58508.0,58507.0,3.4146633]
[1723712695659,0.50255454,58508.0,58507.0,3.4146633]
[1723712695864,0.51655454,58508.0,58507.0,3.4156633]
[1723712696079,0.51655454,58508.0,58507.0,3.0738243]
[1723712696298,0.50255454,58508.0,58507.0,3.4146633]
[1723712696500,0.51055454,58508.0,58507.0,3.4156633]
[1723712696716,0.21055454,58508.0,58507.0,3.7575023]
[1723712696916,0.21055454,58508.0,58507.0,3.4156633]
[1723712698007,0.21055454,58508.0,58507.0,2.9029053]
[1723712698159,1.29391649,58508.0,58507.0,2.9029053]
[1723712699443,1.63574949,58508.0,58507.0,2.9029053]
[1723712699643,1.29391649,58508.0,58507.0,2.9029053]
[1723712700631,1.29391649,58508.0,58507.0,3.4156633]
[1723712700632,0.21055454,58508.0,58507.0,3.4156633]
[1723712700836,0.21055454,58508.0,58507.0,3.4913633]
[1723712701042,0.21055454,58508.0,58507.0,3.8332023]
[1723712701245,0.21055454,58508.0,58507.0,3.4913633]
[1723712701450,0.016,58508.0,58507.0,3.8332023]
[1723712702064,0.016,58508.0,58507.0,3.7575023]
[1723712702273,0.18755454,58508.0,58507.0,3.4156633]
[1723712702715,0.18755454,58508.0,58507.0,3.0738243]
[1723712702716,0.91755454,58508.0,58507.0,3.0738243]
[1723712703177,0.94055454,58508.0,58507.0,3.0738243]
[1723712704404,0.94055454,58508.0,58507.0,0.1738243]
[1723712704602,0.21055454,58508.0,58507.0,0.5769633]
[1723712704811,0.18755454,58508.0,58507.0,0.9188023]
[1723712705986,0.18755454,58508.0,58507.0,0.9988023]
[1723712707521,0.97755454,58508.0,58507.0,0.0029053]
[1723712707720,1.00055454,58508.0,58507.0,0.1738243]
[1723712708905,1.00055454,58508.0,58507.0,0.0029053]
[1723712709043,1.00055454,58508.0,58507.0,0.1738243]
[1723712710732,1.00055454,58508.0,58507.0,0.5156633]
[1723712710939,1.00055454,58508.0,58507.0,0.0029053]
[1723712711111,1.00055454,58508.0,58507.0,0.1738243]
[1723712711317,1.00055454,58508.0,58507.0,0.0029053]
[1723712711858,1.00055454,58508.0,58507.0,0.1738243]
[1723712712177,1.66763089,58508.0,58507.0,0.0029053]
[1723712713751,1.74573089,58508.0,58507.0,0.0029053]
[1723712715599,2.08756389,58508.0,58507.0,0.0029053]
[1723712715802,1.74573089,58508.0,58507.0,0.0029053]
[1723712717529,2.08756389,58508.0,58507.0,0.0029053]
[1723712717848,2.20177646,58508.0,58507.0,0.0029053]
[1723712718704,2.53560946,58508.0,58507.0,0.0019053]
[1723712718913,2.18577646,58508.0,58507.0,0.0009053]
[1723712719134,2.19477646,58508.0,58507.0,0.0019053]
[1723712719339,2.55060946,58508.0,58507.0,0.0029053]
[1723712719745,2.54160946,58508.0,58507.0,0.0019053]
[1723712720922,2.59262266,58508.0,58507.0,0.0019053]
[1723712721153,2.60562266,58508.0,58507.0,0.0019053]
[1723712721372,2.63112927,58508.0,58507.0,0.0019053]
[1723712722162,2.36134832,58508.0,58507.0,0.0019053]
[1723712722358,2.28938352,58508.0,58507.0,0.0019053]
[1723712722561,2.55460946,58508.0,58507.0,0.0019053]
[1723712723168,2.72978823,58508.0,58507.0,0.0019053]
[1723712723579,2.60225521,58508.0,58507.0,0.0019053]
[1723712724365,4.33258821,58508.0,58507.0,0.0019053]
[1723712724563,4.48562783,58508.0,58507.0,0.0019053]
[1723712724770,4.13379483,58508.0,58507.0,0.0019053]
[1723712725272,4.12079483,58508.0,58507.0,0.0019053]
[1723712725555,3.96646748,58508.0,58507.0,0.0019053]
[1723712725806,3.96646748,58508.0,58507.0,0.0009053]
[1723712725807,4.0810428,58508.0,58507.0,0.0009053]
[1723712726009,3.96688712,58508.0,58507.0,0.0009053]
[1723712726211,3.92684258,58508.0,58507.0,0.0009053]
[1723712726412,4.08439712,58508.0,58507.0,0.0009053]
[1723712726614,4.09839712,58508.0,58507.0,0.0009053]
[1723712726816,4.2518964,58508.0,58507.0,0.0009053]
[1723712727315,4.09839712,58508.0,58507.0,0.0009053]
[1723712727526,4.45423012,58508.0,58507.0,0.0009053]
[1723712727727,4.46423012,58508.0,58507.0,0.0009053]
[1723712727987,4.11239712,58508.0,58507.0,0.0009053]
[1723712729592,4.11148716,58508.0,58507.0,0.0009053]
[1723712730456,1.35332685,58508.0,58507.0,0.3145243]
[1723712730653,1.35332685,58508.0,58507.0,0.6563633]
[1723712730654,0.028,58508.0,58507.0,0.6563633]
[1723712730808,0.07919477,58508.0,58507.0,0.9982023]
[1723712731015,0.028,58508.0,58507.0,0.9982023]
[1723712731224,0.028,58508.0,58507.0,1.3400413]
[1723712731466,0.03,58509.0,58508.0,0.993482]
[1723712731667,0.03,58509.0,58508.0,1.68340594]
[1723712731927,0.4764,58518.0,58517.0,0.993352]
[1723712732330,0.4764,58518.0,58517.0,1.34132165]
[1723712732707,0.4764,58518.0,58517.0,0.99954065]
[1723712733085,0.4774,58518.0,58517.0,0.99954065]
[1723712733672,0.4774,58518.0,58517.0,0.993352]
[1723712733873,0.64895454,58518.0,58517.0,0.99954065]
[1723712734102,0.64895454,58518.0,58517.0,0.65775965]
[1723712734315,1.46195454,58518.0,58517.0,0.31597865]
[1723712734506,1.46195454,58518.0,58517.0,0.30979]
[1723712734708,1.46095454,58518.0,58517.0,0.31597865]
[1723712735018,1.46095454,58518.0,58517.0,0.14508865]
[1723712735224,1.46095454,58518.0,58517.0,0.00618865]
[1723712735225,1.63484154,58518.0,58517.0,0.00618865]
[1723712735420,1.54185454,58518.0,58517.0,0.00618865]
[1723712735633,1.54185454,58518.0,58516.0,0.170893]
[1723712735634,1.46295454,58518.0,58516.0,0.170893]
[1723712735800,0.19455454,58517.0,58515.0,0.170895]
[1723712736216,0.98455454,58517.0,58516.0,0.00642287]
[1723712736874,0.98455454,58517.0,58514.0,0.170899]
[1723712737079,1.15544554,58517.0,58515.0,0.00642344]
[1723712737281,1.15544554,58517.0,58510.0,0.341818]
[1723712737282,0.170893,58516.0,58511.0,0.341814]
[1723712737498,0.19455454,58515.0,58512.0,0.170904]
[1723712737736,0.15464223,58514.0,58508.0,0.0656]
[1723712737977,0.19455454,58513.0,58508.0,0.0656]
[1723712738195,0.170909,58511.0,58508.0,0.0656]
[1723712738411,0.19455454,58510.0,58508.0,0.0656]
[1723712738620,0.19455454,58510.0,58509.0,0.854567]
[1723712738820,0.19455454,58510.0,58509.0,0.937067]
[1723712740081,0.17155454,58510.0,58509.0,0.937067]
[1723712740286,0.0511446,58519.0,58516.0,0.170893]
[1723712740524,0.36544154,58518.0,58515.0,0.170896]
[1723712740752,0.98455454,58518.0,58515.0,0.170896]
[1723712740979,0.79,58518.0,58517.0,0.854452]
[1723712741171,0.0511446,58521.0,58520.0,0.170881]
[1723712741319,0.94155454,58521.0,58520.0,0.512644]
[1723712742264,0.96455454,58521.0,58520.0,0.170881]
[1723712742385,0.96455454,58521.0,58516.0,0.483083]
[1723712742588,0.19455454,58520.0,58519.0,0.170884]
[1723712742796,0.98455454,58520.0,58519.0,0.170884]
[1723712743447,0.98455454,58520.0,58519.0,0.51907414]
[1723712743658,0.98455454,58520.0,58519.0,0.170884]
[1723712743858,0.98455454,58520.0,58519.0,0.17730514]
[1723712744264,0.98455454,58520.0,58519.0,0.51907414]
[1723712744477,0.99255454,58520.0,58519.0,0.17730514]
[1723712745627,0.99955454,58520.0,58519.0,0.00642114]
[1723712746612,1.17043554,58520.0,58519.0,0.00642114]
[1723712746800,1.51219854,58520.0,58519.0,0.00642114]
[1723712746998,0.170888,58518.0,58516.0,0.1413]
[1723712747199,0.19455454,58517.0,58516.0,0.1413]
[1723712747402,0.19455454,58517.0,58514.0,0.170898]
[1723712747403,1.15544454,58517.0,58514.0,0.170898]
[1723712747741,0.98455454,58517.0,58514.0,0.170898]
[1723712747940,1.15544454,58517.0,58514.0,0.170898]
[1723712748140,1.15544454,58517.0,58513.0,0.170901]
[1723712749464,1.15544454,58517.0,58512.0,0.1467]
[1723712749465,0.341787,58516.0,58512.0,0.1467]
[1723712749665,0.1709,58514.0,58512.0,0.1467]
[1723712749795,0.17155454,58513.0,58512.0,0.1467]
[1723712750002,0.19455454,58513.0,58512.0,0.1467]
[1723712750204,0.36545654,58513.0,58512.0,0.1467]
[1723712750425,0.36545654,58513.0,58507.0,0.3427393]
[1723712750426,1.13287919,58513.0,58507.0,0.0009053]
[1723712750628,0.170916,58508.0,58507.0,0.0009053]
[1723712750855,1.15547054,58508.0,58507.0,0.0009053]
[1723712751057,1.49730354,58508.0,58507.0,0.0009053]
[1723712751258,1.97683654,58508.0,58507.0,0.0009053]
[1723712751503,2.49022408,58508.0,58507.0,0.0009053]
[1723712751718,2.54132463,58508.0,58507.0,0.0009053]
[1723712753289,2.55032463,58508.0,58507.0,0.0009053]
[1723712753500,2.55732463,58508.0,58507.0,0.0009053]
[1723712753911,2.68739402,58508.0,58507.0,0.0009053]
[1723712754090,2.68039402,58508.0,58507.0,0.0009053]
[1723712754291,2.55264263,58508.0,58507.0,0.0009053]
[1723712754519,2.56264263,58508.0,58507.0,0.0009053]
[1723712754913,2.55264263,58508.0,58507.0,0.0009053]
[1723712755483,2.56664263,58508.0,58507.0,0.0009053]
[1723712755695,1.03797309,58508.0,58507.0,0.0009053]
[1723712755911,1.3110911,58508.0,58507.0,0.0009053]
[1723712756102,1.22311999,58508.0,58507.0,0.0009053]
[1723712756239,1.50230354,58508.0,58507.0,0.0009053]
[1723712756439,1.57895299,58508.0,58507.0,0.00860161]
[1723712756652,1.57895299,58508.0,58507.0,0.0009053]
[1723712757016,0.25065178,58508.0,58507.0,0.0637053]
[1723712757202,0.19955454,58508.0,58507.0,0.07140161]
[1723712757405,0.22255454,58508.0,58507.0,0.24232061]
[1723712757549,0.22255454,58508.0,58507.0,0.32102061]
[1723712757748,0.22255454,58508.0,58507.0,0.66285961]
[1723712757969,0.028,58508.0,58507.0,1.34653761]
[1723712758143,0.014,58508.0,58507.0,1.34653761]
[1723712758386,0.022,58508.0,58507.0,1.34653761]
[1723712758588,0.008,58508.0,58507.0,1.34653761]
[1723712759185,0.016,58508.0,58507.0,1.34653761]
[1723712759389,0.008,58508.0,58507.0,1.34653761]
[1723712759824,0.003,58508.0,58507.0,1.34653761]
[1723712760048,0.34178,58518.0,58507.0,1.34653761]
[1723712760049,0.170895,58516.0,58510.0,0.341818]
[1723712760249,0.19455454,58515.0,58510.0,0.170908]
[1723712760461,0.19455454,58515.0,58511.0,0.00768547]
[1723712760462,0.854525,58512.0,58511.0,0.00768547]
[1723712760665,0.54455454,58512.0,58511.0,0.00768547]
[1723712760864,0.54455454,58512.0,58507.0,0.0009053]
[1723712760865,0.170912,58510.0,58507.0,0.0009053]
[1723712761067,0.001,58508.0,58507.0,0.0009053]
[1723712761267,0.79347054,58508.0,58507.0,0.0009053]
[1723712761469,0.81547054,58508.0,58507.0,0.0009053]
[1723712761642,0.64455454,58508.0,58507.0,0.0009053]
[1723712762099,0.81547054,58508.0,58507.0,0.0009053]
[1723712762500,0.64455454,58508.0,58507.0,0.0009053]
[1723712762723,1.15730354,58508.0,58507.0,0.0009053]
[1723712762916,0.81947054,58508.0,58507.0,0.0009053]
[1723712763380,0.64855454,58508.0,58507.0,0.1718243]
[1723712764018,0.64855454,58508.0,58507.0,0.5136633]
[1723712764019,0.65355454,58508.0,58507.0,0.5136633]
[1723712764230,0.65355454,58508.0,58507.0,0.0009053]
[1723712764446,0.20355454,58508.0,58507.0,0.1718243]
[1723712764666,0.18055454,58508.0,58507.0,0.5950633]
[1723712764856,0.18055454,58508.0,58507.0,0.9369023]
[1723712764978,0.17655454,58508.0,58507.0,0.9369023]
[1723712765186,0.18255454,58508.0,58507.0,0.9369023]
[1723712765588,0.17655454,58508.0,58507.0,0.9369023]
[1723712766041,0.99355454,58508.0,58507.0,0.0009053]
[1723712767891,1.16447054,58508.0,58507.0,0.0009053]
[1723712768097,2.26546954,58508.0,58507.0,0.0009053]
[1723712768297,2.31656335,58508.0,58507.0,0.0009053]
[1723712768506,2.34211026,58508.0,58507.0,0.0009053]
[1723712768914,2.50301803,58508.0,58507.0,0.0009053]
[1723712769109,2.37388296,58508.0,58507.0,0.0009053]
[1723712769327,2.36988296,58508.0,58507.0,0.0009053]
[1723712769547,2.6075375,58508.0,58507.0,0.0009053]
[1723712769789,2.6215375,58508.0,58507.0,0.0009053]
[1723712769966,2.96072597,58508.0,58507.0,0.0009053]
[1723712770174,3.19032736,58508.0,58507.0,0.0009053]
[1723712770374,4.62215901,58508.0,58507.0,0.0009053]
[1723712770585,4.47682736,58508.0,58507.0,0.0009053]
[1723712771230,4.46882736,58508.0,58507.0,0.0009053]
[1723712771772,4.48282736,58508.0,58507.0,0.0009053]
[1723712771973,4.46882736,58508.0,58507.0,0.0009053]
[1723712772179,4.45482736,58508.0,58507.0,0.0009053]
[1723712772399,4.46882736,58508.0,58507.0,0.0009053]
[1723712772604,4.48882736,58508.0,58507.0,0.0009053]
[1723712772884,4.47482736,58508.0,58507.0,0.0009053]
[1723712773020,4.45482736,58508.0,58507.0,0.0009053]
[1723712773220,4.46882736,58508.0,58507.0,0.0009053]
[1723712773848,4.81066036,58508.0,58507.0,0.0009053]
[1723712774050,4.82466036,58508.0,58507.0,0.0009053]
[1723712774314,4.84466036,58508.0,58507.0,0.0009053]
[1723712774509,4.83066036,58508.0,58507.0,0.0009053]
[1723712774873,1.679736,58497.0,58488.0,0.51466362]
[1723712775072,4.29664067,58497.0,58488.0,0.51466362]
[1723712775304,4.31895667,58497.0,58488.0,0.51466362]
[1723712775511,4.26889237,58497.0,58485.0,0.0009053]
[1723712776286,4.27560062,58497.0,58485.0,0.0009053]
[1723712777088,4.40328485,58497.0,58485.0,0.0009053]
[1723712777956,4.76918185,58497.0,58485.0,0.0009053]
[1723712778161,4.80584076,58497.0,58485.0,0.0009053]
[1723712778757,4.81584076,58497.0,58485.0,0.0009053]
[1723712778990,4.82584076,58497.0,58485.0,0.0009053]
[1723712779198,4.81184076,58497.0,58485.0,0.0009053]
[1723712779366,1.196867,58486.0,58485.0,0.0009053]
[1723712779586,1.196867,58486.0,58479.0,0.009042]
[1723712779588,0.522995,58480.0,58479.0,0.009042]
[1723712779924,1.197112,58474.0,58471.0,0.009042]
[1723712780257,4.41087065,58474.0,58471.0,0.009042]
[1723712780454,4.96026213,58474.0,58471.0,0.009042]
[1723712781244,4.96026213,58474.0,58459.0,0.0009053]
[1723712781245,0.01,58468.0,58459.0,0.0009053]
[1723712781449,3.29848609,58468.0,58459.0,0.0009053]
[1723712781747,4.54775544,58468.0,58459.0,0.0009053]
[1723712781943,4.80935827,58468.0,58459.0,0.0009053]
[1723712782148,4.98091281,58468.0,58459.0,0.0009053]
[1723712782569,1.197399,58460.0,58459.0,0.0009053]
[1723712782704,2.65245354,58460.0,58459.0,0.0009053]
[1723712782907,3.00456754,58460.0,58459.0,0.0009053]
[1723712783130,3.07816754,58460.0,58459.0,0.0009053]
[1723712783345,3.23714114,58460.0,58459.0,0.0009053]
[1723712783966,3.25714114,58460.0,58459.0,0.0009053]
[1723712784171,3.25714114,58460.0,58459.0,0.00071946]
[1723712784384,3.31955514,58460.0,58459.0,0.00071946]
[1723712784588,3.34005056,58460.0,58459.0,0.00071946]
[1723712784799,3.36005056,58460.0,58459.0,0.00071946]
[1723712785006,1.549643,58455.0,58454.0,0.009053]
[1723712785218,0.523223,58454.0,58453.0,0.0009053]
[1723712785408,0.523223,58454.0,58448.0,0.009053]
[1723712785409,0.684356,58449.0,58448.0,0.009053]
[1723712785618,2.47587754,58449.0,58448.0,0.009053]
[1723712785839,2.81805554,58449.0,58448.0,0.009053]
[1723712786286,3.37233099,58449.0,58448.0,0.001053]
[1723712786483,3.64337009,58449.0,58448.0,0.001053]
[1723712786940,3.15199464,58449.0,58448.0,0.001053]
[1723712787216,3.17199464,58449.0,58448.0,0.001053]
[1723712787924,3.18599464,58449.0,58448.0,0.001053]
[1723712788154,3.53843585,58449.0,58448.0,0.001053]
[1723712788264,3.53843585,58449.0,58448.0,1e-08]
[1723712788470,3.53843585,58449.0,58437.0,0.009053]
[1723712788471,0.253521,58438.0,58437.0,0.009053]
[1723712788732,3.96235664,58438.0,58437.0,0.009053]
[1723712788938,4.30459964,58438.0,58437.0,0.009053]
[1723712789841,4.31859964,58438.0,58437.0,0.009053]
[1723712790156,0.171139,58432.0,58431.0,0.0011053]
[1723712790360,3.04717154,58432.0,58431.0,0.0011053]
[1723712790607,3.58400408,58432.0,58431.0,0.0011053]
[1723712790812,4.02628208,58432.0,58431.0,0.0011053]
[1723712792018,4.03632444,58432.0,58431.0,0.0011053]
[1723712792239,4.05032444,58432.0,58431.0,0.0011053]
[1723712792444,4.03632444,58432.0,58431.0,0.0011053]
[1723712792899,4.13062444,58432.0,58431.0,0.0011053]
[1723712793122,4.14462444,58432.0,58431.0,0.0011053]
[1723712793493,4.13062444,58432.0,58431.0,0.0011053]
[1723712793959,4.14462444,58432.0,58431.0,0.0011053]
[1723712794313,4.48690244,58432.0,58431.0,0.0011053]
[1723712794513,4.47290244,58432.0,58431.0,0.0011053]
[1723712794953,4.48290244,58432.0,58431.0,0.0011053]
[1723712795102,4.46890244,58432.0,58431.0,0.0011053]
[1723712795527,4.48290244,58432.0,58431.0,0.0011053]
[1723712795907,4.46890244,58432.0,58431.0,0.0011053]
[1723712796107,4.81118044,58432.0,58431.0,0.0011053]
[1723712796406,4.82518044,58432.0,58431.0,0.0011053]
[1723712796607,4.83918044,58432.0,58431.0,0.0011053]
[1723712797218,4.82518044,58432.0,58431.0,0.0011053]
[1723712797444,4.82518044,58432.0,58414.0,0.0648]
[1723712797445,0.855942,58415.0,58414.0,0.0648]
[1723712797661,1.76032644,58415.0,58414.0,0.0648]
[1723712798586,1.76832644,58415.0,58414.0,0.0648]
[1723712798993,1.77632644,58415.0,58414.0,0.0648]
[1723712800074,2.11870344,58415.0,58414.0,0.0648]
[1723712800285,2.12909008,58415.0,58414.0,0.0648]
[1723712800482,0.93077108,58415.0,58411.0,0.0002]
[1723712800685,0.76104654,58412.0,58411.0,0.0002]
[1723712800868,2.57823154,58412.0,58411.0,0.0002]
[1723712801093,2.60123154,58412.0,58411.0,0.0002]
[1723712801899,3.87973154,58412.0,58411.0,0.0002]
[1723712802099,3.99373154,58412.0,58411.0,0.0002]
[1723712802299,4.22908608,58412.0,58411.0,0.0002]
[1723712802904,4.21508608,58412.0,58411.0,0.0002]
[1723712803101,4.08938608,58412.0,58411.0,0.0002]
[1723712803382,4.07538608,58412.0,58411.0,0.0002]
[1723712803590,4.08938608,58412.0,58411.0,0.0002]
[1723712804063,4.07538608,58412.0,58411.0,0.0002]
[1723712804464,4.08938608,58412.0,58411.0,0.0002]
[1723712804708,3.74699108,58412.0,58411.0,0.0002]
[1723712804915,4.18098608,58412.0,58411.0,0.0002]
[1723712805353,4.16698608,58412.0,58411.0,0.0002]
[1723712805954,3.57543654,58412.0,58411.0,0.0002]
[1723712806241,3.58943654,58412.0,58411.0,0.0002]
[1723712806397,3.24704154,58412.0,58411.0,0.0636]
[1723712806601,1.56405454,58412.0,58411.0,0.0636]
[1723712806761,1.56405454,58412.0,58411.0,0.3153]
[1723712806762,0.89555454,58412.0,58411.0,0.3153]
[1723712806962,0.18555454,58412.0,58411.0,1.000102]
[1723712807174,0.19955454,58412.0,58411.0,1.01046275]
[1723712807380,0.028,58412.0,58411.0,1.35286375]
[1723712807967,0.014,58412.0,58411.0,1.35286375]
[1723712808169,0.18555454,58412.0,58411.0,0.66806175]
[1723712808320,0.18555454,58412.0,58411.0,0.15446075]
[1723712808321,0.65810999,58412.0,58411.0,0.15446075]
[1723712808481,0.82930699,58412.0,58411.0,0.15446075]
[1723712808678,0.82930699,58412.0,58411.0,0.1441]
[1723712808915,0.80130699,58412.0,58411.0,0.15453778]
[1723712809115,0.83830699,58412.0,58411.0,0.15453778]
[1723712809333,0.66710999,58412.0,58411.0,0.15453778]
[1723712809556,1.16670199,58412.0,58411.0,0.1441]
[1723712809934,0.65610999,58412.0,58411.0,0.15662534]
[1723712810155,0.19755454,58412.0,58411.0,0.32782534]
[1723712810333,0.19755454,58412.0,58411.0,1.01353374]
[1723712810915,0.19755454,58412.0,58411.0,1.01453374]
[1723712810916,0.17455454,58412.0,58411.0,1.01453374]
[1723712811275,0.003,58412.0,58411.0,1.35693474]
[1723712811451,0.003,58412.0,58411.0,1.35593474]
[1723712811867,0.007,58412.0,58411.0,1.35593474]
[1723712812085,0.004,58412.0,58411.0,1.35593474]
[1723712812269,0.03,58413.0,58412.0,0.855987]
[1723712812467,0.03,58413.0,58412.0,0.95036291]
[1723712812881,0.03,58413.0,58412.0,1.35885791]
[1723712813079,0.64756,58425.0,58420.0,0.0772]
[1723712813080,0.818724,58425.0,58420.0,0.0772]
[1723712813310,0.171169,58422.0,58420.0,0.0772]
[1723712813482,0.19455454,58421.0,58420.0,0.248373]
[1723712813682,0.98455454,58421.0,58420.0,0.590721]
[1723712814053,0.98455454,58421.0,58420.0,0.248373]
[1723712814337,0.98455454,58421.0,58420.0,0.0772]
[1723712814545,1.30553089,58421.0,58420.0,0.0772]
[1723712814866,1.64787289,58421.0,58420.0,0.0772]
[1723712815727,0.51354,58418.0,58417.0,0.064]
[1723712815930,1.49809454,58418.0,58417.0,0.064]
[1723712816134,0.855927,58416.0,58415.0,0.0804]
[1723712816283,0.855927,58416.0,58413.0,0.0647]
[1723712816284,0.855957,58414.0,58413.0,0.0647]
[1723712816511,1.81751154,58414.0,58413.0,0.0647]
[1723712816714,1.84051154,58414.0,58413.0,0.0647]
[1723712816922,1.49812854,58414.0,58413.0,0.0647]
[1723712817119,1.65513573,58414.0,58413.0,0.0647]
[1723712817722,0.98455454,58414.0,58413.0,0.235894]
[1723712817901,0.98455454,58414.0,58413.0,0.0647]
[1723712818307,0.98455454,58414.0,58413.0,0.07504568]
[1723712818533,0.98455454,58414.0,58413.0,0.41743468]
[1723712818741,1.12032709,58414.0,58413.0,0.07504568]
[1723712818899,1.63490109,58414.0,58413.0,0.07504568]
[1723712819077,1.63490109,58414.0,58413.0,0.0647]
[1723712819078,1.29251809,58414.0,58413.0,0.0647]
[1723712819284,0.513592,58412.0,58411.0,0.0791064]
[1723712819487,1.84054154,58412.0,58411.0,0.0011064]
[1723712819686,2.01209608,58412.0,58411.0,0.0011064]
[1723712819988,2.35449108,58412.0,58411.0,0.0011064]
[1723712820334,2.01209608,58412.0,58411.0,0.0011064]
[1723712820538,2.05936526,58412.0,58411.0,0.0011064]
[1723712820743,1.20337826,58412.0,58411.0,0.0011064]
[1723712820953,1.15610908,58412.0,58411.0,0.0829064]
[1723712821308,0.19455454,58412.0,58411.0,0.6594074]
[1723712821972,0.98555454,58412.0,58411.0,0.3170064]
[1723712822190,0.98555454,58412.0,58411.0,0.1458064]
[1723712822366,0.98455454,58412.0,58411.0,0.1458064]
[1723712822539,0.98455454,58412.0,58411.0,0.6594074]
[1723712822540,0.99955454,58412.0,58411.0,0.6594074]
[1723712822949,0.98455454,58412.0,58411.0,0.6594074]
[1723712823154,0.98455454,58412.0,58411.0,0.3170064]
[1723712823350,0.98755454,58412.0,58411.0,0.3170064]
[1723712823557,0.98755454,58412.0,58411.0,0.1458064]
[1723712823760,1.15875154,58412.0,58411.0,0.1458064]
[1723712823960,1.65125979,58412.0,58411.0,0.0640064]
[1723712824218,1.99365479,58412.0,58411.0,0.0640064]
[1723712824524,1.99365479,58412.0,58411.0,0.0011064]
[1723712824525,2.34004979,58412.0,58411.0,0.0011064]
[1723712825096,2.33304979,58412.0,58411.0,0.0011064]
[1723712825295,2.46310495,58412.0,58411.0,0.0011064]
[1723712825499,2.47210495,58412.0,58411.0,0.0011064]
[1723712825701,2.46810495,58412.0,58411.0,0.0011064]
[1723712825899,2.46310495,58412.0,58411.0,0.0011064]
[1723712826102,2.91349995,58412.0,58411.0,0.0011064]
[1723712826279,2.92249995,58412.0,58411.0,0.0011064]
[1723712826482,2.990737,58412.0,58411.0,0.0011064]
[1723712826701,2.72971889,58412.0,58411.0,0.0011064]
[1723712826886,2.58210495,58412.0,58411.0,0.0011064]
[1723712827503,2.65877984,58412.0,58411.0,0.0011064]
[1723712827750,2.64977984,58412.0,58411.0,0.0011064]
[1723712828126,2.66277984,58412.0,58411.0,0.0011064]
[1723712828327,2.65277984,58412.0,58411.0,0.0011064]
[1723712828530,2.72258215,58412.0,58411.0,0.0011064]
[1723712828731,2.73658215,58412.0,58411.0,0.0011064]
[1723712828957,2.75058215,58412.0,58411.0,0.0011064]
[1723712829161,2.64824208,58412.0,58411.0,0.0011064]
[1723712829391,2.66224208,58412.0,58411.0,0.0011064]
[1723712829587,3.00464583,58412.0,58411.0,0.0011064]
[1723712829945,4.4308231,58412.0,58411.0,0.0011064]
[1723712830155,1.540854,58409.0,58408.0,0.009053]
[1723712830356,3.36712477,58409.0,58408.0,0.009053]
[1723712830558,3.39012477,58409.0,58408.0,0.009053]
[1723712831392,3.57691906,58409.0,58408.0,0.009053]
[1723712832280,5.02503677,58409.0,58408.0,0.009053]
[1723712832500,5.26243106,58409.0,58408.0,0.00883937]
[1723712832730,5.27643106,58409.0,58408.0,0.00883937]
[1723712833258,4.92001906,58409.0,58408.0,0.00883937]
[1723712833401,4.92001906,58409.0,58408.0,0.00646341]
[1723712833402,4.76122477,58409.0,58408.0,0.00646341]
[1723712833803,4.74722477,58409.0,58408.0,0.00646341]
[1723712834006,4.73814791,58409.0,58408.0,0.00646341]
[1723712834261,4.75214791,58409.0,58408.0,0.00646341]
[1723712834924,4.72414791,58409.0,58408.0,0.00646341]
[1723712835040,4.73814791,58409.0,58408.0,0.00646341]
[1723712835247,4.75214791,58409.0,58408.0,0.00646341]
[1723712835480,4.73814791,58409.0,58408.0,0.00646341]
[1723712835905,4.75214791,58409.0,58408.0,0.00646341]
[1723712836194,4.08328137,58409.0,58408.0,0.00646341]
[1723712836601,4.09728137,58409.0,58408.0,0.00646341]
[1723712837006,4.08328137,58409.0,58408.0,0.00646341]
[1723712837430,4.09728137,58409.0,58408.0,0.00646341]
[1723712837659,4.26883591,58409.0,58408.0,0.00646341]
[1723712837951,4.24083591,58409.0,58408.0,0.00646341]
[1723712838154,4.58324791,58409.0,58408.0,0.00646341]
[1723712838453,4.75424791,58409.0,58408.0,0.00646341]
[1723712838695,4.74024791,58409.0,58408.0,0.00646341]
[1723712838888,4.72624791,58409.0,58408.0,0.00646341]
[1723712839087,4.74024791,58409.0,58408.0,0.00646341]
[1723712839311,4.72624791,58409.0,58408.0,0.00646341]
[1723712839515,4.89901973,58409.0,58408.0,0.00646341]
[1723712839727,4.91301973,58409.0,58408.0,0.00646341]
[1723712839890,4.74024791,58409.0,58408.0,0.00646341]
[1723712840103,4.74024791,58409.0,58408.0,1.00380841]
[1723712840104,0.06309654,58409.0,58408.0,1.00380841]
[1723712840299,0.014,58409.0,58408.0,1.35536785]
[1723712840457,0.028,58409.0,58408.0,1.45536785]
[1723712840656,0.05117973,58428.0,58410.0,0.0797]
[1723712840858,0.17155454,58427.0,58426.0,0.1413]
[1723712841198,0.17155454,58427.0,58426.0,0.312456]
[1723712841375,0.17155454,58427.0,58426.0,0.32153472]
[1723712841564,0.17155454,58427.0,58426.0,0.66384772]
[1723712841788,0.17155454,58427.0,58426.0,0.32153472]
[1723712842015,0.17155454,58427.0,58426.0,0.66384772]
[1723712842219,0.17155454,58427.0,58426.0,1.00616072]
[1723712842391,0.17855454,58427.0,58426.0,1.34847372]
[1723712842616,0.17855454,58427.0,58426.0,1.00616072]
[1723712842819,0.18555454,58427.0,58426.0,1.00616072]
[1723712843438,0.17855454,58427.0,58426.0,1.00616072]
[1723712844021,0.18455454,58427.0,58426.0,1.00716072]
[1723712844222,0.17755454,58427.0,58426.0,1.00716072]
[1723712844503,0.17155454,58427.0,58426.0,1.00616072]
[1723712844725,0.17255454,58427.0,58426.0,0.66384772]
[1723712845114,0.19555454,58427.0,58426.0,0.66384772]
[1723712845313,0.19455454,58427.0,58426.0,0.66384772]
[1723712845719,0.20055454,58427.0,58426.0,0.66484772]
[1723712845923,0.20055454,58427.0,58426.0,0.32153472]
[1723712845924,0.19455454,58427.0,58426.0,0.32153472]
[1723712846128,0.19537854,58427.0,58426.0,0.32153472]
[1723712846350,0.19537854,58427.0,58426.0,0.66384772]
[1723712846990,1.79076579,58427.0,58426.0,0.00907872]
[1723712847191,1.44845879,58427.0,58426.0,0.00907872]
[1723712847369,1.44845879,58427.0,58421.0,0.0807]
[1723712847370,0.93599879,58427.0,58421.0,0.0807]
[1723712847568,0.34272154,58423.0,58421.0,0.0807]
[1723712847720,0.023,58422.0,58421.0,0.0807]
[1723712847928,0.19455454,58422.0,58421.0,0.0807]
[1723712848334,0.36572254,58422.0,58421.0,0.09117283]